[Event "46th GRE-chT Premier 2018"]
[Site "Rio Achaia"]
[Date "2018.07.12"]
[Round "4"]
[White "Mihailidou, Magdalini"]
[Black "Kaliontzaki, Argyro Evanthia"]
[Result "1-0"]
[ECO "B27"]
[WhiteElo "1762"]
[BlackElo "1346"]
[Annotator "NA"]
[PlyCount "75"]
[EventDate "2018.07.10"]
[EventType "team-tourn"]
[EventCountry "GRE"]
[SourceTitle "playchess.com"]
[Source "ChessBase"]
[SourceQuality "1"]
[TimeControl "40/5400+30:1800+30"]

1. e4 {[%emt 0:00:00]} c5 {[%emt 0:00:00]} 2. Nf3 {[%emt 0:00:00]} g6 {[%emt 0:00:00]} 3. d4 {[%emt 0:00:02]} cxd4 {[%emt 0:00:00]} 4. Qxd4 {[%emt 0:00:09]} Nf6 {[%emt 0:00:00]} 5. e5 {[%emt 0:01:01]} Nc6 {[%emt 0:00:04]} 6. Qa4 {[%emt 0:00:36]} Nd5 {[%emt 0:02:00]} 7. Qe4 {[%emt 0:00:16]} Nb6 {[%emt 0:02:32]} 8. Nc3 {[%emt 0:00:59]} Bg7 {[%emt 0:00:52]} 9. Bf4 {[%emt 0:00:22]} O-O {[%emt 0:00:45]} 10. O-O-O {[%emt 0:01:32]} d5 {[%emt 0:01:48]} 11. exd6 {[%emt 0:01:30]} Bf5 {[%emt 0:00:30]} 12. dxe7 {[%emt 0:19:46]} Qxe7 {[%emt 0:12:49]} 13. Qxe7 {[%emt 0:01:09]} Nxe7 {[%emt 0:00:07]} 14. Bd6 {[%emt 0:12:24]} Rfe8 {[%emt 0:03:41]} 15. Bb5 {[%emt 0:16:47]} Nc6 {[%emt 0:10:58]} 16. Bc7 {[%emt 0:38:50]} Bxc3 {[%emt 0:07:58]} 17. bxc3 {[%emt 0:00:06]} Re7 {[%emt 0:03:32]} 18. Bf4 {[%emt 0:02:33]} Rc8 {[%emt 0:04:16]} 19. h3 {[%emt 0:00:36]} Nb4 {[%emt 0:08:48]} 20. Bd6 {[%emt 0:00:47]} Re6 {[%emt 0:00:45]} 21. Bxb4 {[%emt 0:00:06]} a6 {[%emt 0:08:07]} 22. Bd3 {[%emt 0:00:08]} Bxd3 {[%emt 0:00:24]} 23. Rxd3 {[%emt 0:00:12]} Nc4 {[%emt 0:04:14]} 24. Re1 {[%emt 0:00:37]} Rce8 {[%emt 0:00:38]} 25. Rxe6 {[%emt 0:00:40]} Rxe6 {[%emt 0:00:07]} 26. Rd8+ {[%emt 0:00:38]} Kg7 {[%emt 0:00:22]} 27. Bf8+ {[%emt 0:00:18]} Kf6 {[%emt 0:00:40]} 28. Bh6 {[%emt 0:00:32]} Ke7 {[%emt 0:00:37]} 29. Rd4 {[%emt 0:00:25]} b5 {[%emt 0:00:49]} 30. Rd1 {[%emt 0:00:35]} f6 {[%emt 0:03:15]} 31. Nd4 {[%emt 0:00:26]} Rd6 {[%emt 0:00:34]} 32. Bf4 {[%emt 0:00:20]} Ne5 {[%emt 0:01:16]} 33. Re1 {[%emt 0:00:10]} Rd5 {[%emt 0:00:32]} 34. Bxe5 {[%emt 0:00:11]} fxe5 {[%emt 0:00:15]} 35. f4 {[%emt 0:00:14]} Kd6 {[%emt 0:00:21]} 36. fxe5+ {[%emt 0:00:11]} Rxe5 {[%emt 0:00:09]} 37. Rxe5 {[%emt 0:00:22]} Kxe5 {[%emt 0:00:08]} 38. g3 {[%emt 0:00:41]} 1-0

[Event "46th GRE-chT Premier 2018"]
[Site "Rio Achaia"]
[Date "2018.07.12"]
[Round "4"]
[White "Kalyva, Kyriaki"]
[Black "Kratimenou, Georgia"]
[Result "1-0"]
[ECO "E35"]
[WhiteElo "1734"]
[BlackElo "1436"]
[Annotator "NA"]
[PlyCount "83"]
[EventDate "2018.07.10"]
[EventType "team-tourn"]
[EventCountry "GRE"]
[SourceTitle "playchess.com"]
[Source "ChessBase"]
[SourceQuality "1"]
[TimeControl "40/5400+30:1800+30"]

1. d4 {[%emt 0:00:00]} d5 {[%emt 0:00:00]} 2. c4 {[%emt 0:00:00]} e6 {[%emt 0:00:00]} 3. Nc3 {[%emt 0:00:00]} Bb4 {[%emt 0:00:00]} 4. cxd5 {[%emt 0:00:14]} exd5 {[%emt 0:00:29]} 5. Qc2 {[%emt 0:00:34]} Nf6 {[%emt 0:03:19]} 6. Bg5 {[%emt 0:00:15]} h6 {[%emt 0:01:11]} 7. Bh4 {[%emt 0:00:29]} Nc6 {[%emt 0:01:45]} 8. e3 {[%emt 0:01:14]} Bxc3+ {[%emt 0:07:31]} 9. bxc3 {[%emt 0:03:03]} O-O {[%emt 0:01:43]} 10. Bd3 {[%emt 0:01:50]} Re8 {[%emt 0:04:09]} 11. Nf3 {[%emt 0:04:53]} Qd6 {[%emt 0:01:59]} 12. Nd2 {[%emt 0:01:33]} Qe6 {[%emt 0:02:25]} 13. O-O {[%emt 0:13:03]} Ne7 {[%emt 0:14:17]} 14. Rae1 {[%emt 0:07:53]} Nf5 {[%emt 0:01:26]} 15. Bxf6 {[%emt 0:00:33]} Qxf6 {[%emt 0:00:27]} 16. e4 {[%emt 0:00:28]} dxe4 {[%emt 0:01:22]} 17. Nxe4 {[%emt 0:00:23]} Qd8 {[%emt 0:08:54]} 18. Re2 {[%emt 0:17:11]} b6 {[%emt 0:23:32]} 19. Rfe1 {[%emt 0:02:59]} Be6 {[%emt 0:03:04]} 20. h3 {[%emt 0:16:50]} Nd6 {[%emt 0:02:17]} 21. c4 {[%emt 0:07:33]} Qd7 {[%emt 0:05:30]} 22. Nxd6 {[%emt 0:00:48]} Qxd6 {[%emt 0:00:54]} 23. Be4 {[%emt 0:10:19]} Rad8 {[%emt 0:01:16]} 24. d5 {[%emt 0:01:43]} Bd7 {[%emt 0:00:23]} 25. Re3 {[%emt 0:00:46]} a5 {[%emt 0:03:05]} 26. Rd1 {[%emt 0:01:18]} Qc5 {[%emt 0:01:16]} 27. Rg3 {[%emt 0:01:35]} Qb4 {[%emt 0:02:47]} 28. a3 {[%emt 0:00:33]} Qa4 {[%emt 0:00:38]} 29. Qd3 {[%emt 0:00:22]} b5 {[%emt 0:02:14]} 30. Qd4 {[%emt 0:01:44]} g5 {[%emt 0:00:21]} 31. Rc1 {[%emt 0:00:44]} c5 {[%emt 0:03:23]} 32. Qd3 {[%emt 0:00:40]} bxc4 {[%emt 0:00:52]} 33. Rxc4 Qb5 {[%emt 0:00:18]} 34. f4 {[%emt 0:01:29]} f6 {[%emt 0:02:06]} 35. Bh7+ {[%emt 0:01:29]} Kf8 {[%emt 0:00:26]} 36. Qg6 {[%emt 0:00:08]} Re1+ {[%emt 0:00:42]} 37. Kh2 {[%emt 0:00:07]} Ke7 {[%emt 0:00:17]} 38. Qg7+ {[%emt 0:00:30]} Kd6 {[%emt 0:00:10]} 39. Qxf6+ {[%emt 0:00:10]} Kc7 {[%emt 0:00:09]} 40. Rgc3 {[%emt 0:00:00]} Qb6 {[%emt 0:00:00]} 41. Rxc5+ {[%emt 0:00:46]} Kb7 {[%emt 0:02:51]} 42. Rc7+ {[%emt 0:00:23]} 1-0

[Event "46th GRE-chT Premier 2018"]
[Site "Rio Achaia"]
[Date "2018.07.12"]
[Round "4"]
[White "Petraki, Argiro"]
[Black "Tounta, Nefeli"]
[Result "1-0"]
[ECO "B48"]
[WhiteElo "1729"]
[BlackElo "1344"]
[Annotator "NA"]
[PlyCount "77"]
[EventDate "2018.07.10"]
[EventType "team-tourn"]
[EventCountry "GRE"]
[SourceTitle "playchess.com"]
[Source "ChessBase"]
[SourceQuality "1"]
[TimeControl "40/5400+30:1800+30"]

1. e4 {[%emt 0:00:00]} c5 {[%emt 0:00:00]} 2. Nf3 {[%emt 0:00:00]} e6 {[%emt 0:00:11]} 3. d4 {[%emt 0:00:00]} cxd4 {[%emt 0:00:06]} 4. Nxd4 {[%emt 0:00:00]} Nc6 {[%emt 0:00:13]} 5. Nc3 {[%emt 0:00:18]} Qc7 {[%emt 0:00:34]} 6. Be3 {[%emt 0:00:35]} a6 {[%emt 0:00:36]} 7. Qd2 {[%emt 0:04:33]} Nf6 {[%emt 0:03:18]} 8. f3 {[%emt 0:00:08]} b5 {[%emt 0:05:41]} 9. O-O-O {[%emt 0:05:56]} Nxd4 {[%emt 0:08:53]} 10. Bxd4 {[%emt 0:00:22]} e5 {[%emt 0:12:34]} 11. Be3 {[%emt 0:01:02]} Bb7 {[%emt 0:09:05]} 12. g4 {[%emt 0:04:47]} Rc8 {[%emt 0:04:26]} 13. g5 {[%emt 0:06:53]} b4 {[%emt 0:14:29]} 14. Na4 {[%emt 0:01:04]} Nxe4 {[%emt 0:03:26]} 15. fxe4 {[%emt 0:01:19]} Bxe4 {[%emt 0:00:05]} 16. Bd3 {[%emt 0:00:09]} Bxh1 {[%emt 0:01:33]} 17. Rxh1 {[%emt 0:07:05]} Qc6 {[%emt 0:04:08]} 18. Rd1 {[%emt 0:00:57]} Qxa4 {[%emt 0:04:47]} 19. Bf5 {[%emt 0:02:06]} Rc7 {[%emt 0:04:17]} 20. Bb6 {[%emt 0:00:48]} Rb7 {[%emt 0:06:51]} 21. Qd5 {[%emt 0:11:24]} Qc6 {[%emt 0:01:26]} 22. Qxe5+ {[%emt 0:00:32]} Be7 {[%emt 0:00:29]} 23. Bxd7+ {[%emt 0:05:58]} Qxd7 {[%emt 0:11:46]} 24. Rxd7 {[%emt 0:00:36]} Rxd7 {[%emt 0:00:09]} 25. Qxg7 {[%emt 0:01:00]} Rf8 {[%emt 0:00:21]} 26. Qe5 {[%emt 0:01:15]} f6 {[%emt 0:02:32]} 27. Qb8+ {[%emt 0:04:27]} Kf7 {[%emt 0:00:39]} 28. Qf4 {[%emt 0:01:29]} Kg7 {[%emt 0:00:19]} 29. gxf6+ {[%emt 0:00:54]} Rxf6 {[%emt 0:00:50]} 30. Qg4+ {[%emt 0:00:24]} Kf7 {[%emt 0:00:31]} 31. Qxd7 {[%emt 0:00:21]} Rxb6 {[%emt 0:00:30]} 32. Qd5+ {[%emt 0:01:27]} Kf8 {[%emt 0:00:21]} 33. c4 {[%emt 0:03:44]} bxc3 {[%emt 0:00:14]} 34. bxc3 {[%emt 0:00:36]} Ba3+ {[%emt 0:00:23]} 35. Kc2 {[%emt 0:00:05]} Rb2+ {[%emt 0:00:43]} 36. Kd3 {[%emt 0:00:05]} Rxh2 {[%emt 0:00:25]} 37. Qf5+ {[%emt 0:00:07]} Kg8 {[%emt 0:00:43]} 38. Qg5+ {[%emt 0:00:07]} Kf7 {[%emt 0:00:46]} 39. Qf4+ {[%emt 0:00:05]} 1-0

[Event "46th GRE-chT Premier 2018"]
[Site "Rio Achaia"]
[Date "2018.07.12"]
[Round "4"]
[White "Bastianou, Chrysoula"]
[Black "Pasoglou, Nikoleta"]
[Result "1-0"]
[ECO "E46"]
[WhiteElo "1710"]
[BlackElo "1354"]
[Annotator "NA"]
[PlyCount "83"]
[EventDate "2018.07.10"]
[EventType "team-tourn"]
[EventCountry "GRE"]
[SourceTitle "playchess.com"]
[Source "ChessBase"]
[SourceQuality "1"]
[TimeControl "40/5400+30:1800+30"]

1. d4 {[%emt 0:00:00]} Nf6 {[%emt 0:00:00]} 2. c4 {[%emt 0:00:00]} e6 {[%emt 0:00:00]} 3. Nc3 {[%emt 0:00:00]} Bb4 {[%emt 0:00:00]} 4. e3 {[%emt 0:00:00]} O-O {[%emt 0:00:00]} 5. Nge2 {[%emt 0:00:00]} Re8 {[%emt 0:00:07]} 6. a3 {[%emt 0:00:00]} Bf8 {[%emt 0:00:05]} 7. Ng3 {[%emt 0:00:01]} c5 {[%emt 0:01:28]} 8. dxc5 {[%emt 0:02:01]} Bxc5 {[%emt 0:00:12]} 9. b4 {[%emt 0:01:33]} Be7 {[%emt 0:01:42]} 10. Be2 {[%emt 0:00:25]} d6 {[%emt 0:07:50]} 11. O-O {[%emt 0:00:30]} Nbd7 {[%emt 0:01:53]} 12. Bb2 {[%emt 0:01:22]} Nb6 {[%emt 0:20:19]} 13. Qb3 {[%emt 0:03:19]} e5 {[%emt 0:06:56]} 14. Nd5 {[%emt 0:10:41]} Nbxd5 {[%emt 0:05:28]} 15. cxd5 {[%emt 0:00:10]} Bd7 {[%emt 0:03:11]} 16. a4 {[%emt 0:10:44]} a5 {[%emt 0:13:50]} 17. b5 {[%emt 0:02:29]} b6 {[%emt 0:00:38]} 18. Rfd1 {[%emt 0:03:46]} Qc7 {[%emt 0:05:03]} 19. Rac1 {[%emt 0:03:09]} Qb7 {[%emt 0:01:09]} 20. Bc4 {[%emt 0:01:08]} Rac8 {[%emt 0:02:32]} 21. Nf1 {[%emt 0:03:03]} Ne4 {[%emt 0:04:41]} 22. Nd2 {[%emt 0:01:57]} Nc5 {[%emt 0:01:36]} 23. Qa2 {[%emt 0:00:31]} Bf5 {[%emt 0:10:10]} 24. Nf1 {[%emt 0:09:55]} Bg6 {[%emt 0:02:25]} 25. Ng3 {[%emt 0:04:51]} Qd7 {[%emt 0:03:31]} 26. h3 {[%emt 0:03:33]} Bh4 27. Be2 {[%emt 0:12:21]} Bxg3 {[%emt 0:03:12]} 28. fxg3 {[%emt 0:00:20]} Ne4 {[%emt 0:02:12]} 29. Kh2 {[%emt 0:01:12]} Qe7 {[%emt 0:03:27]} 30. Bf3 {[%emt 0:02:57]} Qg5 31. Bxe4 {[%emt 0:01:58]} Bxe4 {[%emt 0:00:47]} 32. Ba3 {[%emt 0:03:05]} Qxe3 {[%emt 0:00:38]} 33. Rc6 {[%emt 0:00:35]} Red8 {[%emt 0:00:53]} 34. Rdc1 {[%emt 0:01:17]} Rxc6 {[%emt 0:00:20]} 35. bxc6 {[%emt 0:05:07]} Bxd5 {[%emt 0:00:41]} 36. Qxd5 {[%emt 0:00:11]} Qxa3 {[%emt 0:00:01]} 37. c7 {[%emt 0:00:14]} Rc8 {[%emt 0:00:58]} 38. Qb7 {[%emt 0:00:17]} h6 {[%emt 0:00:31]} 39. Qxc8+ {[%emt 0:00:06]} Kh7 {[%emt 0:00:03]} 40. Qf5+ {[%emt 0:00:00]} g6 {[%emt 0:00:00]} 41. Qxf7+ {[%emt 0:00:10]} Kh8 {[%emt 0:00:38]} 42. c8=Q# {[%emt 0:00:07]} 1-0

[Event "46th GRE-chT Premier 2018"]
[Site "Rio Achaia"]
[Date "2018.07.12"]
[Round "4"]
[White "Spyratos, Nikolaos"]
[Black "Magklaras, Panagiotis"]
[Result "1-0"]
[ECO "B36"]
[WhiteElo "1710"]
[BlackElo "1131"]
[Annotator "NA"]
[PlyCount "87"]
[EventDate "2018.07.10"]
[EventType "team-tourn"]
[EventCountry "GRE"]
[SourceTitle "playchess.com"]
[Source "ChessBase"]
[SourceQuality "1"]
[TimeControl "40/5400+30:1800+30"]

1. e4 {[%emt 0:00:00]} c5 {[%emt 0:00:00]} 2. Nf3 {[%emt 0:00:00]} g6 {[%emt 0:00:10]} 3. d4 {[%emt 0:00:00]} cxd4 {[%emt 0:00:03]} 4. Nxd4 {[%emt 0:00:03]} Nc6 {[%emt 0:00:08]} 5. c4 {[%emt 0:00:09]} Nf6 {[%emt 0:00:17]} 6. Nc3 {[%emt 0:00:06]} Nxd4 {[%emt 0:00:09]} 7. Qxd4 {[%emt 0:00:08]} d6 {[%emt 0:00:06]} 8. Be2 {[%emt 0:02:58]} Bg7 {[%emt 0:00:31]} 9. Bg5 {[%emt 0:00:24]} O-O {[%emt 0:00:59]} 10. Qd2 {[%emt 0:00:07]} a5 {[%emt 0:01:59]} 11. Rc1 {[%emt 0:04:32]} a4 {[%emt 0:03:47]} 12. f3 {[%emt 0:02:05]} Be6 {[%emt 0:02:00]} 13. O-O {[%emt 0:03:38]} a3 {[%emt 0:05:05]} 14. b3 {[%emt 0:00:17]} Qa5 {[%emt 0:03:30]} 15. Rfd1 {[%emt 0:06:01]} Rfc8 {[%emt 0:16:24]} 16. Na4 {[%emt 0:06:39]} Rc7 {[%emt 0:06:07]} 17. Qxa5 {[%emt 0:09:38]} Rxa5 {[%emt 0:00:11]} 18. Bd2 {[%emt 0:00:26]} Ra7 {[%emt 0:05:10]} 19. Bb4 {[%emt 0:10:26]} Nh5 {[%emt 0:01:17]} 20. Nc3 {[%emt 0:07:16]} Rc8 {[%emt 0:03:13]} 21. Nb5 {[%emt 0:04:43]} Raa8 {[%emt 0:00:26]} 22. Rc2 {[%emt 0:03:44]} Bb2 {[%emt 0:01:49]} 23. Bc3 {[%emt 0:01:20]} Bxc3 {[%emt 0:01:09]} 24. Nxc3 {[%emt 0:01:43]} Nf6 {[%emt 0:05:53]} 25. f4 {[%emt 0:08:35]} Kf8 {[%emt 0:11:01]} 26. Na4 {[%emt 0:08:22]} Rc6 {[%emt 0:05:12]} 27. Bd3 {[%emt 0:05:57]} Rac8 {[%emt 0:10:47]} 28. Nc3 {[%emt 0:01:32]} Ne8 {[%emt 0:07:54]} 29. Nb5 {[%emt 0:01:15]} Ra8 {[%emt 0:00:09]} 30. h3 {[%emt 0:03:40]} h5 {[%emt 0:02:11]} 31. Nd4 {[%emt 0:01:08]} Rcc8 {[%emt 0:00:19]} 32. Rf2 {[%emt 0:03:29]} Ng7 {[%emt 0:01:25]} 33. f5 {[%emt 0:02:19]} gxf5 {[%emt 0:00:20]} 34. exf5 {[%emt 0:00:22]} Bd7 {[%emt 0:00:48]} 35. f6 {[%emt 0:00:17]} Ne6 {[%emt 0:03:57]} 36. fxe7+ {[%emt 0:00:07]} Kxe7 {[%emt 0:00:07]} 37. Nf5+ {[%emt 0:00:05]} Kf8 {[%emt 0:00:48]} 38. Nxd6 {[%emt 0:00:06]} Rc7 {[%emt 0:00:49]} 39. Rxf7+ {[%emt 0:01:06]} Kg8 {[%emt 0:00:11]} 40. Bh7+ {[%emt 0:00:00]} Kh8 {[%emt 0:00:00]} 41. Bf5 {[%emt 0:01:46]} Nf8 {[%emt 0:02:12]} 42. Bxd7 {[%emt 0:01:24]} Rxd7 {[%emt 0:08:29]} 43. Rxd7 {[%emt 0:00:30]} Nxd7 {[%emt 0:00:06]} 44. Nf7+ {[%emt 0:00:29]} 1-0

[Event "46th GRE-chT Premier 2018"]
[Site "Rio Achaia"]
[Date "2018.07.12"]
[Round "4"]
[White "Stefanou, Konstantinos"]
[Black "Ximinis, Ioannis"]
[Result "1-0"]
[ECO "A16"]
[WhiteElo "1677"]
[BlackElo "1272"]
[Annotator "NA"]
[PlyCount "109"]
[EventDate "2018.07.10"]
[EventType "team-tourn"]
[EventCountry "GRE"]
[SourceTitle "playchess.com"]
[Source "ChessBase"]
[SourceQuality "1"]
[TimeControl "40/5400+30:1800+30"]

1. c4 {[%emt 0:00:00]} Nf6 {[%emt 0:00:00]} 2. Nc3 {[%emt 0:00:00]} g6 {[%emt 0:00:00]} 3. e4 {[%emt 0:00:22]} d6 {[%emt 0:00:11]} 4. d4 {[%emt 0:00:14]} Bg7 {[%emt 0:01:02]} 5. Bd3 {[%emt 0:00:26]} O-O {[%emt 0:01:43]} 6. Nge2 {[%emt 0:00:11]} Nbd7 {[%emt 0:00:31]} 7. O-O {[%emt 0:00:27]} e5 {[%emt 0:01:31]} 8. d5 {[%emt 0:00:11]} Nc5 {[%emt 0:00:54]} 9. Bc2 {[%emt 0:00:39]} a5 {[%emt 0:07:34]} 10. f3 {[%emt 0:01:50]} Ne8 {[%emt 0:07:37]} 11. Be3 {[%emt 0:00:55]} f5 {[%emt 0:05:28]} 12. exf5 {[%emt 0:00:16]} gxf5 {[%emt 0:00:46]} 13. a3 {[%emt 0:03:06]} Nd7 {[%emt 0:18:27]} 14. Qd2 {[%emt 0:02:31]} Ndf6 {[%emt 0:11:30]} 15. Bg5 {[%emt 0:06:20]} Bd7 {[%emt 0:17:40]} 16. Ng3 {[%emt 0:03:46]} Qc8 {[%emt 0:00:34]} 17. Qd3 {[%emt 0:07:56]} f4 {[%emt 0:03:30]} 18. Nh5 {[%emt 0:08:09]} Rf7 {[%emt 0:05:03]} 19. Nxf6+ {[%emt 0:17:03]} Nxf6 {[%emt 0:02:06]} 20. Bxf6 {[%emt 0:03:53]} Bxf6 {[%emt 0:00:08]} 21. Ne4 {[%emt 0:00:08]} Bf5 {[%emt 0:02:07]} 22. Qe2 {[%emt 0:00:40]} Qd7 {[%emt 0:03:20]} 23. b4 {[%emt 0:04:26]} b6 {[%emt 0:04:06]} 24. Bd3 {[%emt 0:00:43]} Raf8 {[%emt 0:01:09]} 25. Rfc1 {[%emt 0:01:51]} Bxe4 {[%emt 0:01:59]} 26. Bxe4 {[%emt 0:00:35]} Rc8 {[%emt 0:00:42]} 27. c5 {[%emt 0:00:29]} Be7 {[%emt 0:00:14]} 28. c6 {[%emt 0:00:38]} Qd8 {[%emt 0:00:36]} 29. bxa5 {[%emt 0:00:29]} bxa5 {[%emt 0:00:04]} 30. Rab1 {[%emt 0:00:21]} Rb8 {[%emt 0:00:32]} 31. Qd2 {[%emt 0:02:31]} a4 {[%emt 0:01:37]} 32. Qc2 {[%emt 0:00:21]} Rxb1 {[%emt 0:00:50]} 33. Rxb1 {[%emt 0:00:05]} Qa8 {[%emt 0:00:03]} 34. Rb7 {[%emt 0:03:31]} Qa5 {[%emt 0:00:45]} 35. Rb4 {[%emt 0:02:52]} Qa7+ {[%emt 0:00:57]} 36. Qf2 {[%emt 0:00:25]} Qa8 {[%emt 0:01:09]} 37. Bc2 {[%emt 0:05:05]} Qa5 {[%emt 0:00:47]} 38. Bxa4 {[%emt 0:03:36]} Qxd5 {[%emt 0:00:32]} 39. Qc2 {[%emt 0:06:13]} Qa5 {[%emt 0:01:09]} 40. g3 {[%emt 0:00:00]} d5 {[%emt 0:00:00]} 41. Rb5 {[%emt 0:08:39]} Qe1+ {[%emt 0:01:13]} 42. Kg2 {[%emt 0:00:07]} fxg3 {[%emt 0:01:01]} 43. hxg3 {[%emt 0:01:14]} Qe3 {[%emt 0:11:16]} 44. Rb3 {[%emt 0:00:30]} Qh6 {[%emt 0:11:50]} 45. Qd3 {[%emt 0:08:05]} Qd6 {[%emt 0:02:10]} 46. Rb8+ {[%emt 0:02:16]} Kg7 {[%emt 0:00:40]} 47. Bb3 {[%emt 0:01:05]} Qxa3 {[%emt 0:05:49]} 48. Qxd5 {[%emt 0:02:25]} Qb2+ {[%emt 0:00:18]} 49. Kh3 {[%emt 0:00:35]} Rf6 {[%emt 0:00:32]} 50. Rg8+ {[%emt 0:02:18]} Kh6 {[%emt 0:00:11]} 51. Qe4 {[%emt 0:01:22]} Rg6 {[%emt 0:00:59]} 52. Rxg6+ {[%emt 0:02:34]} hxg6 {[%emt 0:00:02]} 53. Bf7 {[%emt 0:00:29]} Kg7 {[%emt 0:01:04]} 54. Qxg6+ {[%emt 0:00:18]} Kf8 {[%emt 0:00:17]} 55. Qg8# {[%emt 0:00:03]} 1-0

[Event "46th GRE-chT Premier 2018"]
[Site "Rio Achaia"]
[Date "2018.07.12"]
[Round "4"]
[White "Prokopiou, Ioannis"]
[Black "Klampatseas, Christos"]
[Result "0-1"]
[ECO "B13"]
[WhiteElo "1674"]
[BlackElo "1440"]
[Annotator "NA"]
[PlyCount "136"]
[EventDate "2018.07.10"]
[EventType "team-tourn"]
[EventCountry "GRE"]
[SourceTitle "playchess.com"]
[Source "ChessBase"]
[SourceQuality "1"]
[TimeControl "40/5400+30:1800+30"]

1. e4 {[%emt 0:00:00]} c6 {[%emt 0:00:00]} 2. d4 {[%emt 0:00:10]} d5 {[%emt 0:00:00]} 3. exd5 {[%emt 0:00:09]} cxd5 {[%emt 0:00:00]} 4. Bd3 {[%emt 0:00:07]} Nc6 {[%emt 0:00:02]} 5. c3 {[%emt 0:00:06]} Qc7 {[%emt 0:00:31]} 6. h3 {[%emt 0:00:32]} e5 {[%emt 0:01:18]} 7. dxe5 {[%emt 0:00:22]} Nxe5 {[%emt 0:01:46]} 8. Nf3 {[%emt 0:00:12]} Nxd3+ {[%emt 0:05:02]} 9. Qxd3 {[%emt 0:00:08]} Nf6 {[%emt 0:01:06]} 10. O-O {[%emt 0:02:02]} Be7 {[%emt 0:01:02]} 11. Bg5 {[%emt 0:01:24]} Be6 {[%emt 0:04:04]} 12. Nbd2 {[%emt 0:01:59]} O-O {[%emt 0:02:10]} 13. Rfe1 {[%emt 0:02:09]} Rad8 {[%emt 0:09:47]} 14. Nd4 {[%emt 0:38:16]} Qb6 {[%emt 0:18:24]} 15. Qb5 {[%emt 0:33:00]} Qxb5 {[%emt 0:09:03]} 16. Nxb5 {[%emt 0:00:07]} Bc5 {[%emt 0:00:44]} 17. Bxf6 {[%emt 0:03:36]} gxf6 {[%emt 0:00:10]} 18. Nb3 {[%emt 0:00:14]} Bb6 {[%emt 0:07:11]} 19. N5d4 {[%emt 0:06:26]} Rfe8 {[%emt 0:03:24]} 20. Re3 {[%emt 0:01:16]} Bd7 {[%emt 0:04:56]} 21. Rae1 {[%emt 0:00:12]} Rxe3 {[%emt 0:05:56]} 22. Rxe3 {[%emt 0:00:04]} Re8 {[%emt 0:01:03]} 23. Rxe8+ {[%emt 0:00:07]} Bxe8 {[%emt 0:00:05]} 24. Nf5 {[%emt 0:00:13]} Kf8 {[%emt 0:03:44]} 25. Nbd4 {[%emt 0:00:51]} Bxd4 {[%emt 0:01:36]} 26. Nxd4 {[%emt 0:00:04]} Bd7 {[%emt 0:00:23]} 27. Kf1 {[%emt 0:00:20]} Ke7 {[%emt 0:00:47]} 28. Ke2 {[%emt 0:00:46]} Kd6 {[%emt 0:01:18]} 29. Ke3 {[%emt 0:02:04]} a6 {[%emt 0:01:56]} 30. Nb3 {[%emt 0:06:46]} b6 {[%emt 0:02:16]} 31. Kd4 {[%emt 0:00:43]} Bb5 {[%emt 0:04:12]} 32. Nd2 {[%emt 0:00:03]} Bd7 {[%emt 0:02:24]} 33. Nf1 {[%emt 0:00:46]} Bf5 {[%emt 0:02:00]} 34. Ne3 {[%emt 0:00:29]} Be6 {[%emt 0:02:04]} 35. Ng4 {[%emt 0:01:04]} Bxg4 {[%emt 0:02:00]} 36. hxg4 {[%emt 0:00:01]} Ke6 {[%emt 0:01:20]} 37. a4 {[%emt 0:00:28]} Kd6 {[%emt 0:03:09]} 38. b4 {[%emt 0:00:29]} h6 {[%emt 0:01:13]} 39. g3 {[%emt 0:00:27]} Ke6 {[%emt 0:00:45]} 40. f3 {[%emt 0:00:00]} Kd6 {[%emt 0:00:00]} 41. b5 {[%emt 0:29:14]} a5 {[%emt 0:13:38]} 42. c4 {[%emt 0:01:20]} dxc4 {[%emt 0:00:45]} 43. Kxc4 {[%emt 0:00:02]} Ke5 {[%emt 0:00:40]} 44. Kd3 {[%emt 0:00:05]} Kd5 {[%emt 0:00:24]} 45. f4 {[%emt 0:00:20]} Kc5 {[%emt 0:00:29]} 46. Kc3 {[%emt 0:00:10]} Kd5 {[%emt 0:00:16]} 47. Kd3 {[%emt 0:00:04]} Kc5 {[%emt 0:00:11]} 48. Ke4 {[%emt 0:03:08]} Kb4 {[%emt 0:00:09]} 49. Kf5 {[%emt 0:00:03]} Kxa4 {[%emt 0:00:09]} 50. Kxf6 {[%emt 0:00:03]} Kxb5 {[%emt 0:00:12]} 51. Kxf7 {[%emt 0:00:03]} a4 {[%emt 0:00:04]} 52. Kg6 {[%emt 0:00:02]} a3 {[%emt 0:00:08]} 53. Kxh6 {[%emt 0:00:02]} a2 {[%emt 0:00:12]} 54. f5 {[%emt 0:00:08]} a1=Q {[%emt 0:00:06]} 55. g5 {[%emt 0:00:01]} Qh8+ {[%emt 0:00:24]} 56. Kg6 {[%emt 0:00:04]} Kc4 {[%emt 0:00:10]} 57. Kf7 {[%emt 0:00:15]} b5 {[%emt 0:02:15]} 58. g6 {[%emt 0:00:22]} b4 {[%emt 0:01:06]} 59. g7 {[%emt 0:00:44]} Qh7 {[%emt 0:01:01]} 60. f6 {[%emt 0:01:58]} b3 {[%emt 0:06:42]} 61. Kf8 {[%emt 0:01:03]} b2 {[%emt 0:02:32]} 62. g8=Q+ {[%emt 0:02:53]} Qxg8+ {[%emt 0:00:07]} 63. Kxg8 {[%emt 0:00:11]} b1=Q {[%emt 0:00:09]} 64. f7 {[%emt 0:00:05]} Qg6+ {[%emt 0:00:17]} 65. Kf8 {[%emt 0:00:35]} Kd5 {[%emt 0:00:52]} 66. Ke7 {[%emt 0:00:12]} Qg7 {[%emt 0:00:07]} 67. Ke8 {[%emt 0:00:13]} Ke6 {[%emt 0:00:15]} 68. f8=N+ {[%emt 0:00:46]} Kd6 0-1